bitfinex-derivatives/quotes_ETHF0:USTF0_20260315
["timestamp","ask_amount","ask_price","bid_price","bid_amount"]
[1773585086722,9.1818164,2089.3,2088.7,2.75608041]
[1773585086923,2.61190275,2089.3,2088.7,2.75608041]
[1773585087220,6.57132165,2089.2,2088.7,2.75608041]
[1773585087431,2.61190275,2089.2,2088.7,2.75608041]
[1773585087823,2.61190275,2089.4,2088.7,2.75608041]
[1773585088025,9.17505053,2089.3,2088.7,2.75608041]
[1773585088224,2.61190275,2089.3,2088.7,2.75608041]
[1773585091029,0.00593048,2089.5,2088.7,2.75608041]
[1773585091324,2.50777334,2090.0,2088.7,2.75608041]
[1773585091723,2.50777334,2090.0,2088.9,2.75239908]
[1773585092127,2.5121298,2090.0,2088.9,2.75239908]
[1773585094637,0.00435646,2090.0,2088.9,2.99170908]
[1773585094833,0.00435646,2090.0,2089.1,2.75239908]
[1773585096040,0.00435646,2090.0,2089.3,2.75239908]
[1773585096242,7.48097893,2090.8,2089.3,2.75239908]
[1773585096243,2.61190275,2090.4,2089.3,2.75239908]
[1773585097238,2.61713874,2090.4,2089.3,2.75239908]
[1773585098344,2.61713874,2090.4,2089.5,2.75239908]
[1773585099048,0.00523599,2090.4,2089.5,2.75239908]
[1773585100243,2.61190275,2090.9,2089.6,0.23924]
[1773585100446,2.61190275,2090.9,2089.7,2.75239908]
[1773585101039,2.61190275,2090.9,2089.9,2.75239908]
[1773585101241,2.61807936,2090.9,2089.9,2.75239908]
[1773585125060,0.00617661,2090.9,2090.1,2.89467278]
[1773585126566,0.00617661,2090.9,2090.3,2.89467278]
[1773585126764,0.00617661,2090.9,2090.3,2.89844885]
[1773585128867,2.85212753,2091.2,2090.3,2.89844885]
[1773585129065,6.17236226,2091.1,2090.3,2.89844885]
[1773585129863,6.17571819,2091.1,2090.3,2.89844885]
[1773585130166,9.02195092,2091.1,2090.3,2.89844885]
[1773585130367,2.84958866,2091.1,2090.3,2.89844885]
[1773585130765,2.84958866,2091.1,2090.5,2.89467278]
[1773585132773,2.84958866,2091.1,2090.6,2.89467278]
[1773585135073,0.56178611,2091.2,2090.8,2.89467278]
[1773585135272,0.5468599,2091.5,2090.8,2.89467278]
[1773585135465,6.71889619,2091.4,2090.8,2.89467278]
[1773585135667,6.71889619,2091.3,2090.8,2.89467278]
[1773585135868,0.5520143,2091.3,2090.8,2.89467278]
[1773585139376,0.0051544,2091.3,2090.8,2.89467278]
[1773585150089,0.51057901,2091.8,2090.8,2.89467278]
[1773585151186,0.51642021,2091.8,2090.8,2.89467278]
[1773585164201,0.29087747,2091.7,2090.8,2.89467278]
[1773585166805,0.2509457,2091.6,2090.8,2.89467278]
[1773585173513,6.16069971,2091.7,2090.8,2.89467278]
[1773585173712,6.33605067,2091.7,2090.8,2.89467278]
[1773585174313,6.16069971,2091.7,2090.8,2.89467278]
[1773585174514,0.16865624,2091.8,2090.8,2.89467278]
[1773585174811,6.34319312,2091.8,2090.8,2.89467278]
[1773585175009,0.16281504,2091.7,2090.8,2.89467278]
[1773585175210,0.16206341,2091.6,2090.8,2.89467278]
[1773585183318,6.17453688,2091.7,2090.8,2.89467278]
[1773585183614,3.99739641,2092.1,2091.0,2.64516509]
[1773585184016,5.12994606,2092.2,2091.2,2.64516509]
[1773585184409,1.13254965,2092.2,2091.2,2.64516509]
[1773585184612,1.13628741,2092.2,2091.2,2.64516509]
[1773585185312,0.00373776,2092.2,2091.2,2.64516509]
[1773585185714,0.00373776,2092.2,2091.3,28.147]
[1773585185912,0.00373776,2092.2,2091.4,2.64516509]
[1773585186307,0.11341047,2092.3,2091.4,2.64516509]
[1773585187418,0.11819717,2092.3,2091.4,2.64516509]
[1773585189514,0.11819717,2092.3,2091.6,2.64516509]
[1773585193423,2.34289029,2092.1,2091.5,2.64516509]
[1773585193822,2.70967271,2091.8,2090.9,2.64516509]
[1773585194024,2.70967271,2091.7,2090.9,2.64516509]
[1773585195521,2.70967271,2091.5,2090.9,2.64516509]
[1773585197023,2.70967271,2091.5,2090.7,40.8]
[1773585197216,2.70967271,2091.5,2090.7,43.44516509]
[1773585197421,2.70967271,2091.5,2090.8,2.64516509]
[1773585199126,2.70967271,2091.4,2090.6,28.541]
[1773585199320,2.70967271,2091.4,2090.6,31.18616509]
[1773585200725,2.70967271,2091.4,2090.7,2.64516509]
[1773585200927,2.70967271,2091.3,2090.7,2.64516509]
[1773585202728,2.6994412,2091.5,2090.7,2.64516509]
[1773585205227,2.6994412,2091.5,2090.9,2.7499079]
[1773585208831,1.82964717,2091.4,2090.9,2.7499079]
[1773585209032,2.6994412,2091.3,2090.9,2.7499079]
[1773585209625,1.82964717,2091.6,2090.9,2.7499079]
[1773585209830,8.6659993,2091.5,2090.9,2.7499079]
[1773585210029,2.6994412,2091.5,2090.9,2.7499079]
[1773585212228,2.6994412,2091.5,2090.8,40.8]
[1773585212431,2.6994412,2091.5,2090.7,2.7499079]
[1773585212832,2.6994412,2091.5,2090.8,2.7499079]
[1773585220239,2.6994412,2091.3,2090.8,2.7499079]
[1773585224141,8.69854602,2091.2,2090.8,2.7499079]
[1773585224337,2.6994412,2091.2,2090.8,2.7499079]
[1773585224543,2.6994412,2091.4,2090.8,2.7499079]
[1773585224845,5.99912922,2091.3,2090.8,2.7499079]
[1773585225045,5.99912922,2091.2,2090.8,2.7499079]
[1773585225246,2.6994412,2091.4,2090.8,2.7499079]
[1773585225441,6.00081251,2091.3,2090.8,2.7499079]
[1773585227147,4.54138785,2091.2,2090.8,2.7499079]
[1773585227445,2.6994412,2091.4,2090.8,2.7499079]
[1773585228446,2.6994412,2091.4,2090.9,2.7499079]
[1773585229742,6.69683761,2091.5,2090.9,2.7499079]
[1773585230751,4.52908837,2091.4,2090.8,43.5499079]
[1773585231046,2.6994412,2091.3,2090.8,2.7499079]
[1773585234049,2.6994412,2091.3,2090.6,40.8]
[1773585234050,2.6994412,2091.3,2090.6,43.65038746]
[1773585234548,2.6994412,2091.3,2090.6,2.85038746]
[1773585235049,2.90616515,2091.1,2090.6,2.85038746]
[1773585240052,2.90616515,2090.9,2090.6,2.85038746]
[1773585241551,2.90616515,2090.9,2090.6,1.172431]
[1773585242452,2.90616515,2091.2,2090.6,1.172431]
[1773585242649,5.96109853,2091.1,2090.6,1.172431]
[1773585242854,2.90616515,2091.6,2091.1,1.6680387]
[1773585243353,2.90616515,2091.8,2091.3,1.65488546]
[1773585244150,2.90616515,2091.6,2091.0,40.8]
[1773585245054,2.90616515,2091.6,2090.9,1.86748313]
[1773585245654,2.90616515,2091.6,2090.9,42.66748313]
[1773585247156,2.90616515,2091.6,2091.0,1.84232826]
[1773585254758,2.90616515,2091.6,2090.9,1.83756566]
[1773585272272,5.89842913,2091.5,2090.9,1.83756566]
[1773585273862,8.82022622,2091.5,2090.9,1.83756566]
[1773585274071,2.92179709,2091.5,2090.9,1.83756566]
[1773585282378,6.92921686,2091.8,2090.9,1.83756566]
[1773585282579,2.92179709,2091.8,2090.9,1.83756566]
[1773585284777,4.24637977,2092.1,2090.9,1.83756566]
[1773585284778,4.00741977,2092.2,2090.9,1.83756566]
[1773585284981,2.92179709,2092.0,2090.9,1.83756566]
[1773585285183,8.81743179,2091.9,2090.9,1.83756566]
[1773585285378,2.92179709,2091.9,2090.9,1.83756566]
[1773585287580,2.92179709,2091.9,2090.9,31.56956566]
[1773585288993,2.92179709,2091.9,2091.0,1.66830894]
[1773585300894,2.92179709,2091.9,2091.1,1.59003603]
[1773585301095,2.68052559,2092.1,2091.1,1.59003603]
[1773585305603,2.68052559,2091.9,2091.1,1.59003603]
[1773585308103,2.68052559,2091.9,2090.9,29.732]
[1773585308104,2.68052559,2091.9,2091.0,1.51093014]
[1773585308999,2.68052559,2091.9,2091.1,1.50228079]
[1773585310202,0.23911,2090.8,2089.0,2.88597992]
[1773585310496,0.00414461,2090.2,2089.2,2.88597992]
[1773585310807,0.48284461,2089.9,2089.3,31.96373626]
[1773585311098,0.4883593,2089.9,2089.3,0.00419161]
[1773585311300,0.17732959,2089.8,2089.4,28.53682822]
[1773585311903,2.46491206,2089.7,2089.3,28.811]
[1773585312203,2.46491206,2089.7,2088.8,2.88805162]
[1773585312404,2.46491206,2089.7,2088.9,28.847]
[1773585312601,2.46491206,2089.7,2089.0,4.03084258]
[1773585312800,0.65,2089.6,2088.2,4.03084258]
[1773585313006,0.21800682,2089.1,2087.3,4.03392353]
[1773585313201,0.17868891,2088.9,2086.8,4.05358248]
[1773585313399,0.17868891,2088.9,2087.3,4.05358248]
[1773585313807,1.86142873,2088.8,2087.3,4.05896689]
[1773585314209,1.95577033,2088.6,2087.4,30.31641168]
[1773585314409,1.95577033,2088.6,2087.5,4.00641168]
[1773585317704,11.72765064,2089.9,2087.3,0.00538441]
[1773585317705,1.86747076,2088.2,2087.3,0.00538441]
[1773585318016,1.86747076,2088.2,2085.9,2.68010542]
[1773585318017,1.86747076,2088.0,2086.7,4.03528183]
[1773585319108,1.87124538,2088.0,2086.7,4.03990896]
[1773585319708,1.87124538,2088.0,2086.9,4.01456528]
[1773585320603,1.87124538,2088.0,2087.1,4.10374855]
[1773585323415,1.87124538,2088.0,2087.3,4.56201272]
[1773585323816,1.87124538,2088.0,2087.3,45.36201272]
[1773585324018,1.87124538,2088.0,2086.9,4.56201272]
[1773585324207,1.87124538,2088.0,2086.7,0.00462713]
[1773585324208,1.87124538,2088.0,2086.7,4.56663985]
[1773585324412,1.77915112,2087.8,2086.7,0.00462713]
[1773585324710,1.77915112,2087.6,2086.7,0.00462713]
[1773585324912,1.77915112,2087.4,2086.2,31.94486299]
[1773585325418,1.77915112,2087.4,2086.2,72.74486299]
[1773585325716,1.77915112,2087.4,2086.2,46.25886299]
[1773585325915,1.77915112,2087.4,2086.4,4.56201272]
[1773585326417,1.77915112,2087.4,2086.4,31.34001272]
[1773585326618,1.77915112,2087.4,2086.5,4.56201272]
[1773585327121,1.77915112,2087.4,2086.5,31.56301272]
[1773585327308,1.77915112,2087.4,2086.6,4.56201272]
[1773585327714,1.77915112,2087.4,2086.7,31.71201272]
[1773585328007,1.77915112,2087.4,2086.8,31.77001272]
[1773585328316,1.77915112,2087.4,2086.8,31.85601272]
[1773585328917,1.77915112,2087.4,2086.9,4.56201272]
[1773585329312,1.74903823,2087.6,2086.9,4.56201272]
[1773585329718,1.74903823,2087.6,2086.9,32.26701272]
[1773585329919,1.74903823,2087.6,2087.0,27.752]
[1773585330119,1.74903823,2087.6,2086.9,4.56201272]
[1773585330320,1.74903823,2087.6,2087.0,27.663]
[1773585330817,1.74903823,2087.6,2087.0,32.22501272]
[1773585331017,1.74903823,2087.6,2087.0,32.21901272]
[1773585331319,1.74903823,2087.6,2086.8,4.56201272]
[1773585331521,1.74903823,2087.6,2086.9,27.751]
[1773585331722,1.74903823,2087.6,2086.3,4.56201272]
[1773585331920,1.74903823,2087.6,2086.5,4.56201272]
[1773585332220,1.74903823,2087.6,2086.7,4.56201272]
[1773585333212,1.74903823,2087.6,2086.8,32.20901272]
[1773585333421,1.74903823,2087.6,2087.0,4.56201272]
[1773585333720,1.81149978,2087.9,2087.2,4.56201272]
[1773585335521,1.81149978,2087.9,2087.3,27.996]
[1773585335719,1.81149978,2087.9,2087.3,32.55801272]
[1773585336618,1.81149978,2087.9,2087.4,4.56201272]
[1773585337416,0.00377462,2088.0,2087.4,4.56201272]
[1773585338021,1.81288741,2088.0,2087.4,4.56201272]
[1773585338717,0.00377462,2088.0,2087.4,4.56201272]
[1773585340424,6.96383228,2087.9,2087.4,4.56201272]
[1773585340723,6.96383228,2087.9,2087.5,4.56201272]
[1773585340923,0.00377462,2088.0,2087.5,4.56201272]
[1773585341324,6.92207571,2087.9,2087.5,4.56201272]
[1773585341519,4.47594765,2087.8,2087.5,4.56201272]
[1773585341724,0.00377462,2088.0,2087.7,4.56201272]
[1773585341924,8.83541379,2088.4,2087.7,4.56739771]
[1773585342315,3.92300118,2088.3,2087.7,4.56739771]
[1773585342518,8.83541379,2088.3,2087.7,4.56739771]
[1773585343024,0.00338484,2088.3,2087.7,4.56739771]
[1773585343220,3.92300118,2088.5,2087.7,4.56739771]
[1773585343822,8.83541379,2088.6,2087.7,4.56739771]
[1773585344424,8.84132135,2088.6,2087.7,4.56739771]
[1773585344623,4.91832017,2088.6,2087.7,4.56739771]
[1773585345326,4.91832017,2088.6,2087.9,4.56201272]
[1773585346125,4.91832017,2088.6,2088.0,29.321]
[1773585346326,4.91832017,2088.6,2088.1,29.348]
[1773585347523,4.91832017,2088.6,2088.2,29.421]
[1773585348823,4.91832017,2088.6,2088.2,26.69383986]
[1773585349027,4.91241261,2088.2,2086.7,4.80148175]
[1773585349227,4.91241261,2087.7,2086.9,4.56201272]
[1773585349527,4.91241261,2087.7,2087.0,29.07]
[1773585349732,4.91241261,2087.7,2086.8,4.56201272]
[1773585349929,4.91241261,2087.7,2086.9,28.927]
[1773585350125,4.91241261,2087.7,2086.9,28.93206649]
[1773585351334,4.91241261,2087.7,2086.9,33.85372165]
[1773585351531,4.91241261,2087.7,2087.0,4.92165516]
[1773585352236,4.91241261,2087.7,2087.1,34.06734505]
[1773585353428,4.91241261,2087.7,2087.2,5.05134505]
[1773585353633,11.18004901,2087.6,2087.2,5.05134505]
[1773585353937,6.49453728,2087.5,2087.2,5.05134505]
[1773585354235,11.18004901,2087.5,2087.2,5.05134505]
[1773585354431,4.68551173,2087.8,2087.2,5.05134505]
[1773585354631,11.17161935,2087.7,2087.4,5.05134505]
[1773585354838,6.48610762,2087.6,2087.4,5.05134505]
[1773585355030,4.68551173,2087.8,2087.4,5.05134505]
[1773585355230,11.14910134,2087.7,2087.4,5.05134505]
[1773585355431,6.46358961,2087.6,2087.3,34.11134505]
[1773585355637,4.68551173,2087.5,2087.4,28.992]
[1773585355837,6.46358961,2087.5,2087.4,29.002]
[1773585356338,4.34246556,2087.4,2087.3,29.063]
[1773585356639,4.45283226,2087.8,2087.3,5.05134505]
[1773585356831,4.45283226,2087.6,2087.3,34.15234505]
[1773585357035,4.45283226,2087.6,2087.3,29.101]
[1773585357036,6.46618035,2087.5,2087.3,29.101]
[1773585357436,6.46618035,2087.5,2087.1,5.05134505]
[1773585357635,6.46618035,2087.5,2087.2,33.92734505]
[1773585358233,6.46618035,2087.5,2087.2,5.05134505]
[1773585358436,6.46618035,2087.5,2087.3,33.73334505]
[1773585358736,5.63388511,2087.5,2087.4,5.05134505]
[1773585358937,8.41608446,2087.8,2087.4,5.05134505]
[1773585359135,4.44018926,2087.8,2087.4,5.05134505]
[1773585359336,3.9758952,2087.7,2087.4,5.05134505]
[1773585360040,4.44018926,2087.8,2087.4,5.05134505]
[1773585360041,8.51188002,2087.9,2087.4,5.05134505]
[1773585360542,3.9758952,2087.9,2087.4,5.05134505]
[1773585360743,1.00974758,2088.0,2087.4,5.05134505]
[1773585360940,4.68551173,2088.4,2087.4,5.05134505]
[1773585361541,4.68551173,2088.4,2087.6,5.05134505]
[1773585361944,5.96384281,2088.5,2087.6,5.05134505]
[1773585362436,4.68551173,2088.5,2087.6,5.05134505]
[1773585362639,5.96975037,2088.6,2087.6,5.05134505]
[1773585362640,0.00590756,2088.6,2087.6,5.05134505]
[1773585363043,0.00590756,2088.6,2087.8,5.05134505]
[1773585363841,4.68551173,2089.0,2087.8,5.05134505]
[1773585364843,4.69153803,2089.0,2087.8,5.05134505]
[1773585367147,4.69153803,2089.0,2088.0,5.05134505]
[1773585377652,0.0060263,2089.0,2088.0,5.05134505]
[1773585378952,4.68551173,2089.3,2088.0,5.05134505]
[1773585379953,4.68979283,2089.3,2088.0,5.05134505]
[1773585380656,4.68979283,2089.3,2088.1,29.767]
[1773585380958,4.68979283,2089.3,2088.2,5.05134505]
[1773585381148,4.68979283,2089.3,2088.4,5.05134505]
[1773585381352,4.68979283,2089.3,2088.4,5.05606913]
[1773585382359,0.0042811,2089.3,2088.4,5.05606913]
[1773585383359,5.0612418,2089.6,2088.4,5.05606913]
[1773585383562,5.0612418,2089.8,2088.4,5.05606913]
[1773585383857,5.0612418,2089.6,2088.6,5.01860882]
[1773585384562,5.06518819,2089.6,2088.6,5.01860882]
[1773585384859,5.06518819,2089.6,2088.8,5.01860882]
[1773585385755,5.06518819,2089.6,2088.9,34.83760882]
[1773585385951,5.06518819,2089.6,2089.0,29.819]
[1773585386356,5.06518819,2089.6,2089.0,34.83760882]
[1773585387362,5.06518819,2089.6,2089.1,29.829]
[1773585389855,5.06518819,2089.6,2089.1,34.84760882]
[1773585390056,5.06518819,2089.6,2088.9,5.01860882]
[1773585390251,5.06518819,2089.6,2089.0,29.657]
[1773585390450,5.06518819,2089.6,2089.0,34.67560882]
[1773585390655,5.06518819,2089.6,2088.5,5.01860882]
[1773585390857,5.06518819,2089.6,2088.7,5.01860882]
[1773585391456,5.06518819,2089.6,2088.4,0.00472408]
[1773585391457,5.0612418,2089.2,2088.4,5.0233329]
[1773585391657,0.23927,2089.3,2088.4,5.0233329]
[1773585391658,5.0612418,2089.0,2088.4,34.0793329]
[1773585392862,5.0612418,2089.0,2088.5,29.143]
[1773585393457,5.0612418,2089.0,2088.5,34.16160882]
[1773585394161,5.0612418,2089.5,2088.6,5.01860882]
[1773585394463,6.07752141,2089.4,2088.6,5.01860882]
[1773585395060,5.06518819,2089.6,2088.6,5.01860882]
[1773585395261,5.0612418,2089.4,2088.7,34.17360882]
[1773585395565,5.0612418,2089.4,2088.8,5.01860882]
[1773585396962,5.06518819,2089.6,2088.8,5.01860882]
[1773585397159,5.0612418,2089.4,2088.8,5.01860882]
[1773585399459,0.00394639,2089.6,2088.8,5.01860882]
[1773585400158,5.06518819,2089.6,2088.8,5.01860882]
[1773585400358,5.0612418,2089.4,2088.8,5.01860882]
[1773585406166,11.12124316,2089.3,2088.8,5.01860882]
[1773585406370,5.0612418,2089.3,2088.8,5.01860882]
[1773585406860,0.00394639,2089.6,2088.8,5.01860882]
[1773585406861,5.0612418,2089.5,2088.8,5.01860882]
[1773585407059,0.00394639,2089.6,2088.8,5.01860882]
[1773585407265,5.0612418,2089.5,2088.8,5.01860882]
[1773585419079,5.10948971,2089.3,2088.8,5.01860882]
[1773585419580,5.10948971,2089.5,2088.8,5.01860882]
[1773585419776,6.01479937,2089.4,2088.8,5.01860882]
[1773585419979,11.12428908,2089.4,2088.8,5.01860882]
[1773585420180,5.10948971,2089.4,2088.8,5.01860882]
[1773585420780,11.12480058,2089.3,2088.8,5.01860882]
[1773585420979,5.10948971,2089.3,2088.8,5.01860882]
[1773585424283,11.13450699,2089.2,2088.8,5.01860882]
[1773585424486,5.10948971,2089.2,2088.8,5.01860882]
[1773585425684,5.10948971,2089.4,2088.8,5.01860882]
[1773585425885,11.13540019,2089.3,2088.8,5.01860882]
[1773585426083,6.02591048,2089.2,2088.8,5.01860882]
[1773585426479,11.13540019,2089.2,2088.8,5.01860882]
[1773585426685,5.10948971,2089.2,2088.8,5.01860882]
[1773585427086,3.9943163,2089.5,2088.8,5.01860882]
[1773585427285,5.10948971,2089.3,2088.8,5.01860882]
[1773585427484,6.02725848,2089.2,2088.8,5.01860882]
[1773585429385,3.51688299,2089.2,2088.8,5.01860882]
[1773585429591,5.10948971,2089.4,2088.8,5.01860882]
[1773585430484,5.10948971,2089.4,2088.5,4.81716982]
[1773585435490,5.10948971,2089.2,2088.5,4.81716982]
[1773585438794,5.10948971,2089.2,2088.4,0.00472408]
[1773585439097,5.10948971,2089.2,2088.4,4.8218939]
[1773585441499,5.91156658,2089.1,2088.4,4.8218939]
[1773585441700,5.10948971,2089.0,2088.4,4.8218939]
[1773585442401,4.81710264,2089.3,2088.4,4.8218939]
[1773585442602,4.81710264,2089.1,2088.4,4.8218939]
[1773585446201,4.81710264,2089.2,2088.4,4.8218939]
[1773585446401,5.91099321,2089.1,2088.4,4.8218939]
[1773585446897,10.72809585,2089.1,2088.4,4.8218939]
[1773585447104,4.81710264,2089.1,2088.4,4.8218939]
[1773585450803,4.81710264,2089.2,2088.4,4.8218939]
[1773585452311,4.81710264,2089.1,2088.4,4.8218939]
[1773585456818,4.81710264,2088.9,2088.4,4.8218939]
[1773585458316,4.81710264,2089.2,2088.4,4.8218939]
[1773585458518,8.6886142,2089.6,2088.4,4.8218939]
[1773585458519,4.81710264,2089.3,2088.6,5.10283112]
[1773585459121,4.81710264,2089.0,2088.6,5.10283112]
[1773585461720,4.81710264,2089.0,2088.4,5.1075552]
[1773585464924,4.81710264,2089.4,2088.4,5.1075552]
[1773585465124,5.82787115,2089.5,2088.4,5.1075552]
[1773585465125,4.81710264,2089.2,2088.4,5.1075552]
[1773585465323,1.83355485,2089.1,2088.4,5.1075552]
[1773585465529,4.81710264,2089.0,2088.4,5.1075552]
[1773585474532,4.67315022,2089.3,2088.4,5.1075552]
[1773585474732,5.92773344,2089.2,2088.4,5.1075552]
[1773585474931,4.67315022,2089.1,2088.4,5.1075552]
[1773585476933,4.67315022,2089.3,2088.4,5.1075552]
[1773585477135,4.67315022,2089.1,2088.4,5.1075552]
[1773585478630,4.67315022,2089.3,2088.5,5.05243151]
[1773585478829,10.60122941,2089.2,2088.5,5.05243151]
[1773585479029,4.67315022,2089.2,2088.5,5.05243151]
[1773585480737,4.67315022,2089.5,2088.7,5.05243151]
[1773585481237,0.00394639,2089.6,2089.1,5.05243151]
[1773585481634,0.00394639,2089.6,2089.3,5.05243151]
[1773585485238,1.83355485,2089.9,2089.3,5.05243151]
[1773585485239,4.67315022,2090.1,2089.3,5.05243151]
[1773585485437,4.67315022,2090.0,2089.3,5.05243151]
[1773585486038,4.67758479,2090.0,2089.3,5.05243151]
[1773585488335,0.00443457,2090.0,2089.3,5.05243151]
[1773585488637,0.00443457,2090.0,2089.5,4.89086564]
[1773585490131,0.00443457,2090.0,2089.6,4.87872027]
[1773585490334,4.67315022,2090.2,2089.6,4.87872027]
[1773585491035,4.67315022,2090.0,2089.6,4.87872027]
[1773585491339,4.67691322,2090.0,2089.6,4.87872027]
[1773585491735,4.67691322,2090.0,2089.6,34.10072027]
[1773585495639,4.67691322,2090.0,2089.6,29.222]
[1773585495844,4.67691322,2090.0,2089.7,4.8464779]
[1773585497247,4.67691322,2090.0,2089.6,34.07379206]
[1773585497445,4.67315022,2089.8,2089.3,34.13058806]
[1773585497745,4.67315022,2089.8,2089.4,4.83958806]
[1773585499144,4.67315022,2089.8,2089.3,34.1013149]
[1773585500438,4.67315022,2089.8,2089.3,4.8103149]
[1773585500643,4.67315022,2089.8,2089.2,74.92176113]
[1773585500845,4.67315022,2089.8,2089.3,4.78876113]
[1773585507054,4.67315022,2089.8,2089.3,34.22276113]
[1773585508259,4.67315022,2089.8,2089.3,29.434]
[1773585510159,4.67315022,2089.8,2089.4,4.73795702]
[1773585510354,4.67315022,2089.8,2089.3,34.17220985]
[1773585510557,4.67315022,2089.8,2089.3,29.434]
[1773585510755,4.67315022,2089.8,2089.3,34.16007786]
[1773585514867,4.67315022,2089.8,2089.4,3.84477078]
[1773585515359,4.67315022,2089.8,2089.3,33.40677078]
[1773585516065,4.67315022,2089.8,2089.4,3.88476467]
[1773585516466,4.67315022,2089.8,2089.4,3.86460241]
[1773585518066,4.67315022,2089.8,2089.3,33.41941093]
[1773585518566,4.67315022,2089.8,2089.4,3.84656728]
[1773585519764,4.67315022,2089.8,2089.3,33.40234965]
[1773585520069,4.67315022,2089.8,2089.3,29.562]
[1773585520459,4.67315022,2089.8,2089.2,3.84034965]
[1773585526175,4.67315022,2089.8,2088.9,3.81070512]
[1773585526377,4.68335355,2089.6,2088.9,3.81070512]
[1773585528177,4.68335355,2089.9,2088.9,3.81070512]
[1773585528378,4.68335355,2089.7,2088.9,3.81070512]
[1773585529979,4.68335355,2089.7,2089.0,33.46183322]
[1773585531083,4.58259428,2089.5,2088.9,33.46500806]
[1773585532084,4.58259428,2089.5,2088.8,44.51118307]
[1773585532284,4.58259428,2089.5,2088.7,33.47018307]
[1773585532681,4.58259428,2089.5,2088.7,74.27018307]
[1773585533883,4.02280451,2089.4,2088.8,3.69037574]
[1773585534085,4.52070353,2089.7,2088.7,72.36394115]
[1773585534283,4.52070353,2089.7,2088.8,1.80540457]
[1773585534482,4.52070353,2089.7,2088.8,31.58940457]
[1773585538384,4.52070353,2089.7,2088.9,1.87205754]
[1773585538590,4.52070353,2089.5,2088.6,1.87205754]
[1773585539089,4.52070353,2089.5,2088.6,42.67205754]
[1773585539285,4.52070353,2089.4,2088.6,42.67205754]
[1773585539485,4.52070353,2089.4,2088.6,1.87205754]
[1773585545492,4.52070353,2089.4,2088.7,42.42997503]
[1773585545794,4.52070353,2089.4,2088.7,1.62997503]
[1773585551297,4.52070353,2089.4,2088.5,40.8]
[1773585551501,4.52070353,2089.2,2088.4,1.58049469]
[1773585551895,4.52070353,2089.2,2088.5,1.57577061]
[1773585554893,4.52070353,2089.2,2088.4,42.32247471]
[1773585555096,4.52070353,2089.0,2088.4,0.00472408]
[1773585556903,4.52070353,2089.0,2088.4,1.4995971]
[1773585565004,4.24592941,2089.1,2088.4,1.4995971]
[1773585566309,4.24592941,2089.2,2088.4,1.4995971]
[1773585566805,4.24592941,2089.2,2088.5,1.4009227]
[1773585575318,4.24592941,2089.2,2088.6,1.34146724]
[1773585577915,4.24592941,2089.2,2088.5,3.14054663]
[1773585578112,4.24592941,2089.2,2088.4,1.31216012]
[1773585578718,5.88262317,2089.1,2088.4,1.31216012]
[1773585578915,4.24592941,2089.0,2088.4,1.31216012]
[1773585589431,4.24592941,2089.0,2088.4,0.00472408]
[1773585603543,4.23982582,2089.5,2088.9,1.03252009]
[1773585603842,4.43112921,2089.4,2088.5,1.22382348]
[1773585604042,4.43112921,2089.4,2088.5,30.42582348]
[1773585604745,4.43112921,2089.4,2088.6,1.24039656]
[1773585617152,4.43112921,2089.3,2088.6,1.24039656]
[1773585619358,4.43112921,2089.3,2088.5,29.395]
[1773585619560,4.43112921,2089.1,2088.5,29.364]
[1773585621359,4.43112921,2089.1,2088.5,30.61991151]
[1773585624460,4.43112921,2089.1,2088.6,1.22700443]
[1773585626566,4.43112921,2089.1,2088.5,29.364]
[1773585631768,4.43112921,2089.1,2088.5,30.50009327]
[1773585634668,4.43112921,2089.1,2088.5,1.13609327]
[1773585634870,4.43112921,2089.1,2088.6,29.628]
[1773585637666,4.43112921,2089.1,2088.6,30.70496849]
[1773585639075,4.43112921,2089.1,2088.4,1.07190179]
[1773585639281,4.43112921,2089.1,2088.5,29.683]
[1773585639674,4.43112921,2089.1,2088.5,30.70999842]
[1773585639875,4.43112921,2089.1,2088.5,29.683]
[1773585640474,4.43112921,2089.1,2088.4,29.69972408]
[1773585644883,4.43112921,2089.1,2088.4,0.00472408]
[1773585645077,4.03325544,2088.9,2088.0,71.61538505]
[1773585645678,4.03325544,2089.3,2088.2,1.07820835]
[1773585645884,4.03325544,2089.1,2088.2,1.07820835]
[1773585646082,4.03325544,2089.1,2088.2,1.08248143]
[1773585650184,4.03325544,2089.1,2088.2,1.32103632]
[1773585656993,4.03325544,2089.1,2088.4,0.960975]
[1773585657204,4.12922349,2089.2,2088.4,0.960975]
[1773585657396,4.12922349,2089.2,2088.6,0.95463197]
[1773585657597,4.12922349,2089.4,2088.7,0.94508029]
[1773585657798,4.12922349,2089.9,2088.7,0.94508029]
[1773585658097,4.12922349,2089.7,2088.7,0.94508029]
[1773585658899,0.003763,2090.0,2089.2,1.83327505]
[1773585659201,4.13298649,2090.0,2089.4,3.74962551]
[1773585660798,4.12922349,2090.5,2089.4,3.74962551]
[1773585661104,4.12922349,2090.3,2089.4,3.74962551]
[1773585661793,4.13493943,2090.3,2089.4,3.74962551]
[1773585664708,4.13493943,2090.3,2089.6,3.74962551]
[1773585670110,4.12922349,2090.1,2089.2,40.8]
[1773585670915,4.12922349,2090.1,2089.0,3.74962551]
[1773585671111,4.12922349,2089.9,2089.0,3.74962551]
[1773585671510,4.12922349,2089.9,2089.1,40.8]
[1773585671715,4.12922349,2089.9,2089.1,44.54962551]
[1773585674513,4.12922349,2089.9,2089.2,3.74962551]
[1773585674710,4.12922349,2090.1,2089.3,3.74962551]
[1773585674916,4.12922349,2090.1,2089.4,3.74962551]
[1773585676610,0.00571594,2090.3,2089.4,3.74962551]
[1773585676810,4.13493943,2090.3,2089.4,3.74962551]
[1773585689826,0.23912,2090.7,2089.6,1.83327505]
[1773585690027,10.34542603,2090.7,2089.7,4.27239595]
[1773585690233,4.2063533,2090.5,2089.7,4.27239595]
[1773585690928,4.21177397,2090.5,2089.7,4.27834009]
[1773585692433,4.2063533,2090.3,2089.7,4.27834009]
[1773585699038,4.2063533,2090.3,2089.7,0.00594414]
[1773585699634,4.2063533,2090.3,2089.7,4.27834009]
[1773585701835,4.21177397,2090.5,2089.7,4.27834009]
[1773585704239,4.2063533,2090.3,2089.7,4.27834009]
[1773585706036,4.2063533,2090.3,2089.7,0.00594414]
[1773585706737,4.2063533,2090.1,2089.3,4.27239595]
[1773585707636,4.2063533,2090.1,2089.3,4.27778023]
[1773585712536,4.2063533,2090.1,2089.5,4.03170481]
[1773585717345,4.2063533,2090.1,2089.3,4.03708909]
[1773585719445,4.02911525,2090.0,2089.3,4.03708909]
[1773585725547,4.02911525,2090.0,2089.5,4.03170481]
[1773585727049,4.02911525,2090.2,2089.5,4.03170481]
[1773585730550,4.02911525,2090.2,2089.4,4.03170481]
[1773585730748,4.02911525,2089.9,2089.3,4.03708909]
[1773585734553,4.02911525,2090.1,2089.3,4.03708909]
[1773585735647,3.99099691,2090.4,2089.3,4.03708909]
[1773585735853,4.03453592,2090.5,2090.2,4.03170481]
[1773585736049,4.02911525,2090.6,2090.2,4.03170481]
[1773585736553,4.02911525,2091.0,2090.4,4.03170481]